fUSD/lending_fUSD_20260516
["ID","MTS","AMOUNT","RATE_DAILY","PERIOD"]
[422360390,1778872240000,-150.0,0.00014201,2]
[422360389,1778872240000,-150.0,0.00014201,2]
[422360391,1778872240000,-150.0,0.00014207,2]
[422360399,1778872240000,-150.0,0.00014237,2]
[422360396,1778872240000,-150.0,0.00014237,2]
[422360392,1778872240000,-150.0,0.00014213,2]
[422360400,1778872240000,-313.97726629,0.00014245,2]
[422360395,1778872240000,-150.0,0.00014237,2]
[422360393,1778872240000,-313.97726629,0.00014214,2]
[422360383,1778872240000,-150.0,0.00014166,2]
[422360397,1778872240000,-150.0,0.00014237,2]
[422360394,1778872240000,-313.97726629,0.00014229,2]
[422360404,1778872240000,-150.0,0.00014261,2]
[422360405,1778872240000,-150.0,0.00014267,2]
[422360409,1778872240000,-150.0,0.00014276,2]
[422360406,1778872240000,-150.0,0.00014273,2]
[422360411,1778872240000,-150.0,0.00014297,2]
[422360408,1778872240000,-313.97726629,0.00014275,2]
[422360398,1778872240000,-150.0,0.00014237,2]
[422360403,1778872240000,-313.97726629,0.0001426,2]
[422360410,1778872240000,-313.97726629,0.0001429,2]
[422360402,1778872240000,-350.0,0.00014252,2]
[422360407,1778872240000,-150.0,0.00014273,2]
[422360401,1778872240000,-166.66,0.00014247,2]
[422360476,1778872241000,-313.97726629,0.00014578,2]
[422360486,1778872241000,-1469.12579779,0.00014611,2]
[422360474,1778872241000,-313.97726629,0.00014562,2]
[422360477,1778872241000,-350.0,0.00014583,2]
[422360478,1778872241000,-500.0,0.00014584,2]
[422360483,1778872241000,-150.0,0.00014597,2]
[422360482,1778872241000,-150.0,0.00014594,2]
[422360479,1778872241000,-150.0,0.00014592,2]
[422360481,1778872241000,-150.0,0.00014594,2]
[422360484,1778872241000,-150.0,0.000146,2]
[422360480,1778872241000,-313.97726629,0.00014593,2]
[422360493,1778872241000,-313.97726629,0.00014638,2]
[422360494,1778872241000,-150.0,0.00014648,2]
[422360487,1778872241000,-150.0,0.00014612,2]
[422360488,1778872241000,-150.0,0.00014612,2]
[422360495,1778872241000,-313.97726629,0.00014653,2]
[422360489,1778872241000,-313.97726629,0.00014623,2]
[422360491,1778872241000,-150.0,0.00014629,2]
[422360492,1778872241000,-150.0,0.00014629,2]
[422360490,1778872241000,-150.0,0.00014627,2]
[422360497,1778872241000,-150.0,0.00014665,2]
[422360507,1778872241000,-326.440309,0.00014699,2]
[422360496,1778872241000,-150.0,0.00014657,2]
[422360475,1778872241000,-150.0,0.00014567,2]
[422360485,1778872241000,-313.97726629,0.00014608,2]
[422360468,1778872241000,-150.0,0.00014537,2]
[422360453,1778872241000,-313.97726629,0.00014472,2]
[422360471,1778872241000,-150.0,0.00014551,2]
[422360448,1778872241000,-150.0,0.00014451,2]
[422360447,1778872241000,-150.0,0.00014447,2]
[422360446,1778872241000,-313.97726629,0.00014441,2]
[422360445,1778872241000,-150.0,0.00014434,2]
[422360450,1778872241000,-150.0,0.00014455,2]
[422360449,1778872241000,-150.0,0.00014451,2]
[422360462,1778872241000,-5000.0,0.0001451,2]
[422360452,1778872241000,-150.0,0.00014462,2]
[422360457,1778872241000,-313.97726629,0.00014487,2]
[422360455,1778872241000,-150.0,0.00014477,2]
[422360459,1778872241000,-313.97726629,0.00014502,2]
[422360456,1778872241000,-150.0,0.00014487,2]
[422360451,1778872241000,-313.97726629,0.00014456,2]
[422360454,1778872241000,-2338.45866313,0.00014474,2]
[422360458,1778872241000,-150.0,0.00014487,2]
[422360460,1778872241000,-150.0,0.00014503,2]
[422360461,1778872241000,-150.0,0.00014507,2]
[422360464,1778872241000,-313.97726629,0.00014517,2]
[422360465,1778872241000,-150.0,0.00014522,2]
[422360463,1778872241000,-150.0,0.00014513,2]
[422360473,1778872241000,-150.0,0.00014558,2]
[422360472,1778872241000,-150.0,0.00014558,2]
[422360466,1778872241000,-150.0,0.00014522,2]
[422360469,1778872241000,-150.0,0.00014537,2]
[422360470,1778872241000,-313.97726629,0.00014547,2]
[422360467,1778872241000,-313.97726629,0.00014532,2]
[422360501,1778872241000,-313.97726629,0.00014684,2]
[422360502,1778872241000,-8337.14079997,0.00014687,2]
[422360500,1778872241000,-150.0,0.00014671,2]
[422360534,1778872241000,-172.838,0.0001478,2]
[422360535,1778872241000,-313.97726629,0.0001479,2]
[422360533,1778872241000,-150.0,0.00014776,2]
[422360540,1778872241000,-313.97726629,0.00014805,2]
[422360537,1778872241000,-150.0,0.00014793,2]
[422360538,1778872241000,-150.0,0.00014799,2]
[422360532,1778872241000,-313.97726629,0.00014774,2]
[422360542,1778872241000,-150.0,0.00014808,2]
[422360539,1778872241000,-2508.0,0.000148,2]
[422360541,1778872241000,-150.0,0.00014806,2]
[422360536,1778872241000,-785.593,0.0001479,2]
[422360543,1778872241000,-150.0,0.00014808,2]
[422360547,1778872241000,-500.0,0.00014823,2]
[422360552,1778872241000,-500.0,0.00014823,2]
[422360546,1778872241000,-500.0,0.00014823,2]
[422360548,1778872241000,-500.0,0.00014823,2]
[422360550,1778872241000,-1102.82,0.00014823,2]
[422360545,1778872241000,-500.0,0.00014823,2]
[422360549,1778872241000,-1102.82,0.00014823,2]
[422360553,1778872241000,-500.0,0.00014823,2]
[422360551,1778872241000,-500.0,0.00014823,2]
[422360554,1778872241000,-500.0,0.00014823,2]
[422360555,1778872241000,-500.0,0.00014823,2]
[422360556,1778872241000,-500.0,0.00014823,2]
[422360498,1778872241000,-150.0,0.00014665,2]
[422360531,1778872241000,-150.0,0.00014772,2]
[422360528,1778872241000,-350.0,0.00014769,2]
[422360544,1778872241000,-313.97726629,0.0001482,2]
[422360527,1778872241000,-350.0,0.00014766,2]
[422360526,1778872241000,-150.0,0.00014762,2]
[422360499,1778872241000,-313.97726629,0.00014668,2]
[422360504,1778872241000,-150.0,0.00014687,2]
[422360505,1778872241000,-150.0,0.00014696,2]
[422360503,1778872241000,-150.0,0.00014687,2]
[422360506,1778872241000,-313.97726629,0.00014699,2]
[422360510,1778872241000,-1134.9893546,0.00014699,2]
[422360508,1778872241000,-150.60061714,0.00014699,2]
[422360512,1778872241000,-150.0,0.00014701,2]
[422360513,1778872241000,-150.0,0.00014701,2]
[422360514,1778872241000,-313.97726629,0.00014714,2]
[422360515,1778872241000,-150.0,0.00014717,2]
[422360516,1778872241000,-313.97726629,0.00014729,2]
[422360511,1778872241000,-500.0,0.00014699,2]
[422360524,1778872241000,-314.0,0.00014755,2]
[422360509,1778872241000,-330.50441725,0.00014699,2]
[422360523,1778872241000,-200.0,0.00014754,2]
[422360522,1778872241000,-150.0,0.0001475,2]
[422360525,1778872241000,-313.97726629,0.00014759,2]
[422360521,1778872241000,-150.0,0.00014747,2]
[422360530,1778872241000,-150.0,0.00014772,2]
[422360520,1778872241000,-150.0,0.00014745,2]
[422360519,1778872241000,-313.97726629,0.00014744,2]
[422360518,1778872241000,-150.0,0.00014737,2]
[422360517,1778872241000,-150.0,0.00014737,2]
[422360529,1778872241000,-197.46,0.00014771,2]
[422360591,1778872242000,-460.56638392,0.00014883,2]
[422360593,1778872242000,-460.56638392,0.0001489,2]
[422360589,1778872242000,-150.0,0.00014879,2]
[422360590,1778872242000,-313.97726629,0.0001488,2]
[422360600,1778872242000,-153.53198692,0.000149,2]
[422360584,1778872242000,-2148.8280755,0.00014879,2]
[422360599,1778872242000,-10000.0,0.000149,2]
[422360598,1778872242000,-460.56638392,0.00014897,2]
[422360597,1778872242000,-150.0,0.00014896,2]
[422360596,1778872242000,-313.97726629,0.00014895,2]
[422360594,1778872242000,-150.0,0.0001489,2]
[422360601,1778872242000,-8337.14079997,0.000149,2]
[422360595,1778872242000,-460.56638392,0.00014893,2]
[422360611,1778872242000,-150.0,0.00014911,2]
[422360604,1778872242000,-1469.12579779,0.000149,2]
[422360603,1778872242000,-460.56638392,0.000149,2]
[422360602,1778872242000,-17061.47664226,0.000149,3]
[422360613,1778872242000,-150.0,0.00014915,2]
[422360606,1778872242000,-3653.98758432,0.000149,2]
[422360610,1778872242000,-313.97726629,0.00014911,2]
[422360608,1778872242000,-735.48096882,0.000149,2]
[422360605,1778872242000,-1177.10529499,0.000149,2]
[422360609,1778872242000,-150.0,0.00014907,2]
[422360607,1778872242000,-9233.85867884,0.000149,2]
[422360612,1778872242000,-150.0,0.00014915,2]
[422360587,1778872242000,-460.56638396,0.00014879,2]
[422360592,1778872242000,-460.56638392,0.00014886,2]
[422360585,1778872242000,-5000.0,0.00014879,2]
[422360565,1778872242000,-150.0,0.00014836,2]
[422360578,1778872242000,-313.97726629,0.0001485,2]
[422360557,1778872242000,-500.0,0.00014823,2]
[422360614,1778872242000,-313.97726629,0.00014926,2]
[422360558,1778872242000,-500.0,0.00014823,2]
[422360559,1778872242000,-1106.42,0.00014823,2]
[422360562,1778872242000,-150.0,0.00014829,2]
[422360560,1778872242000,-1106.42,0.00014823,2]
[422360563,1778872242000,-313.97726629,0.00014835,2]
[422360561,1778872242000,-1106.42,0.00014823,2]
[422360564,1778872242000,-150.0,0.00014836,2]
[422360567,1778872242000,-150.0,0.00014841,2]
[422360570,1778872242000,-190.94577915,0.00014849,2]
[422360571,1778872242000,-500.0,0.00014849,2]
[422360569,1778872242000,-150.0,0.00014844,2]
[422360574,1778872242000,-544.8115812,0.00014849,2]
[422360575,1778872242000,-500.0,0.00014849,2]
[422360572,1778872242000,-1102.82,0.00014849,2]
[422360566,1778872242000,-200.0,0.00014839,2]
[422360573,1778872242000,-500.0,0.00014849,2]
[422360568,1778872242000,-150.0,0.00014844,2]
[422360576,1778872242000,-500.0,0.00014849,2]
[422360577,1778872242000,-29964.16918207,0.0001485,2]
[422360580,1778872242000,-350.0,0.00014864,2]
[422360582,1778872242000,-150.0,0.00014866,2]
[422360579,1778872242000,-500.0,0.00014858,2]
[422360588,1778872242000,-150.0,0.00014879,2]
[422360583,1778872242000,-469.54,0.00014878,2]
[422360581,1778872242000,-313.97726629,0.00014865,2]
[422360586,1778872242000,-200.0,0.00014879,2]
[422360619,1778872242000,-150.0,0.00014951,2]
[422360617,1778872242000,-313.97726629,0.00014941,2]
[422360615,1778872242000,-150.0,0.00014926,2]
[422360643,1778872242000,-500.0,0.00014978,2]
[422360651,1778872242000,-502.56578458,0.00014978,2]
[422360652,1778872242000,-500.0,0.00014978,2]
[422360653,1778872242000,-500.0,0.00014978,2]
[422360654,1778872242000,-500.0,0.00014978,2]
[422360657,1778872242000,-537.71298597,0.00014978,2]
[422360656,1778872242000,-500.0,0.00014978,2]
[422360661,1778872242000,-746.33,0.00014978,2]
[422360660,1778872242000,-746.33,0.00014978,2]
[422360659,1778872242000,-603.34873986,0.00014978,2]
[422360658,1778872242000,-500.0,0.00014978,2]
[422360655,1778872242000,-500.0,0.00014978,2]
[422360664,1778872242000,-500.0,0.00014978,2]
[422360646,1778872242000,-549.88,0.00014978,2]
[422360663,1778872242000,-500.0,0.00014978,2]
[422360666,1778872242000,-508.37684919,0.00014978,2]
[422360665,1778872242000,-500.0,0.00014978,2]
[422360672,1778872242000,-500.0,0.00014978,2]
[422360667,1778872242000,-500.0,0.00014978,2]
[422360669,1778872242000,-500.0,0.00014978,2]
[422360670,1778872242000,-500.0,0.00014978,2]
[422360668,1778872242000,-500.0,0.00014978,2]
[422360671,1778872242000,-500.0,0.00014978,2]
[422360674,1778872242000,-17272.5564195,0.00014979,2]
[422360675,1778872242000,-404118.5629333,0.00014979,2]
[422360673,1778872242000,-1725.0,0.00014979,5]
[422360676,1778872242000,-81803.5685142,0.00014979,2]
[422360618,1778872242000,-150.0,0.00014951,2]
[422360662,1778872242000,-500.0,0.00014978,2]
[422360645,1778872242000,-500.0,0.00014978,2]
[422360677,1778872242000,-4840.6497562,0.00014979,2]
[422360644,1778872242000,-500.0,0.00014978,2]
[422360649,1778872242000,-500.0,0.00014978,2]
[422360620,1778872242000,-313.97726629,0.00014956,2]
[422360621,1778872242000,-150.0,0.00014956,2]
[422360622,1778872242000,-320.0,0.00014959,2]
[422360625,1778872242000,-500.0,0.0001497,2]
[422360623,1778872242000,-15000.0,0.00014962,2]
[422360624,1778872242000,-305.0837372,0.00014969,2]
[422360627,1778872242000,-500.0,0.0001497,2]
[422360635,1778872242000,-1215.46028509,0.0001497,2]
[422360626,1778872242000,-1000.0,0.0001497,2]
[422360638,1778872242000,-689.73790928,0.0001497,2]
[422360636,1778872242000,-500.0,0.0001497,2]
[422360637,1778872242000,-500.0,0.0001497,2]
[422360616,1778872242000,-150.0,0.00014938,2]
[422360631,1778872242000,-1000.0,0.0001497,2]
[422360632,1778872242000,-1000.0,0.0001497,2]
[422360650,1778872242000,-500.0,0.00014978,2]
[422360648,1778872242000,-500.0,0.00014978,2]
[422360642,1778872242000,-500.0,0.00014978,2]
[422360641,1778872242000,-500.0,0.00014978,2]
[422360647,1778872242000,-549.88,0.00014978,2]
[422360639,1778872242000,-313.97726629,0.00014971,2]
[422360633,1778872242000,-500.0,0.0001497,2]
[422360628,1778872242000,-1000.0,0.0001497,2]
[422360634,1778872242000,-500.0,0.0001497,2]
[422360630,1778872242000,-500.0,0.0001497,2]
[422360629,1778872242000,-1000.0,0.0001497,2]
[422360640,1778872242000,-500.0,0.00014978,2]
[422360714,1778872243000,-1102.82,0.00014999,2]
[422360718,1778872243000,-1102.84987748,0.00014999,2]
[422360716,1778872243000,-1102.82,0.00014999,2]
[422360719,1778872243000,-500.0,0.00014999,2]
[422360704,1778872243000,-1102.82,0.00014999,2]
[422360717,1778872243000,-1102.82,0.00014999,2]
[422360712,1778872243000,-1102.82,0.00014999,2]
[422360713,1778872243000,-1102.82,0.00014999,2]
[422360703,1778872243000,-1102.82,0.00014999,2]
[422360721,1778872243000,-431.69745624,0.00014999,2]
[422360707,1778872243000,-1102.82,0.00014999,2]
[422360715,1778872243000,-1102.82,0.00014999,2]
[422360720,1778872243000,-500.0,0.00014999,2]
[422360726,1778872243000,-1106.42,0.00014999,2]
[422360723,1778872243000,-500.0,0.00014999,2]
[422360725,1778872243000,-500.0,0.00014999,2]
[422360728,1778872243000,-1106.42,0.00014999,2]
[422360724,1778872243000,-500.0,0.00014999,2]
[422360727,1778872243000,-1106.42,0.00014999,2]
[422360731,1778872243000,-1106.42,0.00014999,2]
[422360732,1778872243000,-1106.42,0.00014999,2]
[422360733,1778872243000,-1106.42,0.00014999,2]
[422360730,1778872243000,-1106.42,0.00014999,2]
[422360729,1778872243000,-1106.42,0.00014999,2]
[422360735,1778872243000,-1106.42,0.00014999,2]
[422360702,1778872243000,-1102.82,0.00014999,2]
[422360736,1778872243000,-1106.42,0.00014999,2]
[422360722,1778872243000,-500.0,0.00014999,2]
[422360705,1778872243000,-1102.82,0.00014999,2]
[422360698,1778872243000,-500.0,0.00014998,2]
[422360711,1778872243000,-1102.82,0.00014999,2]
[422360738,1778872243000,-1106.42,0.00014999,2]
[422360680,1778872243000,-150.0,0.00014986,2]
[422360682,1778872243000,-156.34451496,0.00014986,2]
[422360679,1778872243000,-8695.7429344,0.00014979,2]
[422360688,1778872243000,-313.97726629,0.00014986,2]
[422360683,1778872243000,-150.46696442,0.00014986,2]
[422360687,1778872243000,-287.11416309,0.00014986,2]
[422360685,1778872243000,-266.38482168,0.00014986,2]
[422360681,1778872243000,-274.20162554,0.00014986,2]
[422360678,1778872243000,-4508.2709393,0.00014979,2]
[422360686,1778872243000,-289.18740541,0.00014986,2]
[422360684,1778872243000,-150.0,0.00014986,2]
[422360690,1778872243000,-305.0837372,0.0001499,2]
[422360700,1778872243000,-1601.76405065,0.00014999,5]
[422360689,1778872243000,-275.90606938,0.00014986,2]
[422360693,1778872243000,-500.0,0.00014998,2]
[422360692,1778872243000,-151.0,0.00014997,2]
[422360694,1778872243000,-1102.82,0.00014998,2]
[422360699,1778872243000,-201.38691855,0.00014999,5]
[422360695,1778872243000,-500.0,0.00014998,2]
[422360696,1778872243000,-500.0,0.00014998,2]
[422360691,1778872243000,-305.0837372,0.0001499,2]
[422360697,1778872243000,-1106.42,0.00014998,2]
[422360701,1778872243000,-1102.82,0.00014999,2]
[422360708,1778872243000,-1102.82,0.00014999,2]
[422360710,1778872243000,-1102.82,0.00014999,2]
[422360709,1778872243000,-1102.82,0.00014999,2]
[422360706,1778872243000,-1102.82,0.00014999,2]
[422360739,1778872243000,-1106.42,0.00014999,2]
[422360804,1778872243000,-746.33,0.00014999,2]
[422360737,1778872243000,-1106.42,0.00014999,2]
[422360778,1778872243000,-549.88,0.00014999,2]
[422360782,1778872243000,-549.88,0.00014999,2]
[422360779,1778872243000,-549.88,0.00014999,2]
[422360786,1778872243000,-549.88,0.00014999,2]
[422360788,1778872243000,-549.88,0.00014999,2]
[422360787,1778872243000,-549.88,0.00014999,2]
[422360789,1778872243000,-549.88,0.00014999,2]
[422360797,1778872243000,-500.0,0.00014999,2]
[422360794,1778872243000,-549.88,0.00014999,2]
[422360790,1778872243000,-549.88,0.00014999,2]
[422360798,1778872243000,-500.0,0.00014999,2]
[422360795,1778872243000,-549.92844731,0.00014999,2]
[422360791,1778872243000,-549.88,0.00014999,2]
[422360796,1778872243000,-500.0,0.00014999,2]
[422360793,1778872243000,-549.88,0.00014999,2]
[422360799,1778872243000,-276.56058421,0.00014999,2]
[422360800,1778872243000,-500.0,0.00014999,2]
[422360803,1778872243000,-254.28762829,0.00014999,2]
[422360802,1778872243000,-500.0,0.00014999,2]
[422360801,1778872243000,-500.0,0.00014999,2]
[422360809,1778872243000,-746.33,0.00014999,2]
[422360806,1778872243000,-746.33,0.00014999,2]
[422360807,1778872243000,-746.33,0.00014999,2]
[422360805,1778872243000,-746.33,0.00014999,2]
[422360808,1778872243000,-746.33,0.00014999,2]
[422360740,1778872243000,-1106.42,0.00014999,2]
[422360810,1778872243000,-746.33,0.00014999,2]
[422360775,1778872243000,-500.0,0.00014999,2]
[422360783,1778872243000,-549.88,0.00014999,2]
[422360792,1778872243000,-549.88,0.00014999,2]
[422360781,1778872243000,-549.88,0.00014999,2]
[422360741,1778872243000,-1106.42,0.00014999,2]
[422360777,1778872243000,-549.88,0.00014999,2]
[422360743,1778872243000,-1106.42,0.00014999,2]
[422360747,1778872243000,-361.24119804,0.00014999,2]
[422360749,1778872243000,-151.0,0.00014999,2]
[422360744,1778872243000,-1106.46461365,0.00014999,2]
[422360752,1778872243000,-500.0,0.00014999,2]
[422360755,1778872243000,-500.0,0.00014999,2]
[422360757,1778872243000,-500.0,0.00014999,2]
[422360759,1778872243000,-500.0,0.00014999,2]
[422360761,1778872243000,-500.0,0.00014999,2]
[422360763,1778872243000,-500.0,0.00014999,2]
[422360770,1778872243000,-640.39212556,0.00014999,2]
[422360768,1778872243000,-500.0,0.00014999,2]
[422360742,1778872243000,-1106.42,0.00014999,2]
[422360769,1778872243000,-500.0,0.00014999,2]
[422360767,1778872243000,-426.17237592,0.00014999,2]
[422360780,1778872243000,-549.88,0.00014999,2]
[422360785,1778872243000,-549.88,0.00014999,2]
[422360773,1778872243000,-500.0,0.00014999,2]
[422360774,1778872243000,-500.0,0.00014999,2]
[422360784,1778872243000,-549.88,0.00014999,2]
[422360764,1778872243000,-500.0,0.00014999,2]
[422360771,1778872243000,-500.0,0.00014999,2]
[422360766,1778872243000,-500.0,0.00014999,2]
[422360765,1778872243000,-500.0,0.00014999,2]
[422360772,1778872243000,-500.0,0.00014999,2]
[422360776,1778872243000,-549.88,0.00014999,2]
[422360850,1778872244000,-500.0,0.00014999,2]
[422360858,1778872244000,-500.0,0.00014999,2]
[422360846,1778872244000,-500.0,0.00014999,2]
[422360856,1778872244000,-500.0,0.00014999,2]
[422360839,1778872244000,-500.0,0.00014999,2]
[422360848,1778872244000,-500.0,0.00014999,2]
[422360845,1778872244000,-500.0,0.00014999,2]
[422360840,1778872244000,-500.0,0.00014999,2]
[422360854,1778872244000,-500.0,0.00014999,2]
[422360838,1778872244000,-500.0,0.00014999,2]
[422360847,1778872244000,-500.0,0.00014999,2]
[422360851,1778872244000,-500.0,0.00014999,2]
[422360862,1778872244000,-500.0,0.00014999,2]
[422360853,1778872244000,-500.0,0.00014999,2]
[422360855,1778872244000,-500.0,0.00014999,2]
[422360852,1778872244000,-500.0,0.00014999,2]
[422360873,1778872244000,-500.0,0.00014999,2]
[422360865,1778872244000,-500.0,0.00014999,2]
[422360864,1778872244000,-500.0,0.00014999,2]
[422360859,1778872244000,-500.0,0.00014999,2]
[422360863,1778872244000,-500.0,0.00014999,2]
[422360867,1778872244000,-500.0,0.00014999,2]
[422360875,1778872244000,-500.0,0.00014999,2]
[422360869,1778872244000,-500.0,0.00014999,2]
[422360837,1778872244000,-500.0,0.00014999,2]
[422360849,1778872244000,-500.0,0.00014999,2]
[422360843,1778872244000,-500.0,0.00014999,2]
[422360861,1778872244000,-500.0,0.00014999,2]
[422360841,1778872244000,-401.0210076,0.00014999,2]
[422360811,1778872244000,-746.33,0.00014999,2]
[422360814,1778872244000,-746.33,0.00014999,2]
[422360815,1778872244000,-746.33,0.00014999,2]
[422360812,1778872244000,-746.33,0.00014999,2]
[422360813,1778872244000,-746.33,0.00014999,2]
[422360819,1778872244000,-746.33,0.00014999,2]
[422360818,1778872244000,-746.33,0.00014999,2]
[422360817,1778872244000,-746.33,0.00014999,2]
[422360816,1778872244000,-746.33,0.00014999,2]
[422360821,1778872244000,-746.33,0.00014999,2]
[422360824,1778872244000,-500.0,0.00014999,2]
[422360829,1778872244000,-500.0,0.00014999,2]
[422360842,1778872244000,-500.0,0.00014999,2]
[422360828,1778872244000,-500.0,0.00014999,2]
[422360831,1778872244000,-500.0,0.00014999,2]
[422360832,1778872244000,-500.0,0.00014999,2]
[422360827,1778872244000,-500.0,0.00014999,2]
[422360826,1778872244000,-500.0,0.00014999,2]
[422360820,1778872244000,-746.33,0.00014999,2]
[422360823,1778872244000,-746.36758592,0.00014999,2]
[422360830,1778872244000,-500.0,0.00014999,2]
[422360834,1778872244000,-500.0,0.00014999,2]
[422360844,1778872244000,-500.0,0.00014999,2]
[422360835,1778872244000,-500.0,0.00014999,2]
[422360833,1778872244000,-500.0,0.00014999,2]
[422360836,1778872244000,-244.36367736,0.00014999,2]
[422360822,1778872244000,-746.33,0.00014999,2]
[422360866,1778872244000,-500.0,0.00014999,2]
[422360933,1778872244000,-666.0,0.00014999,2]
[422360877,1778872244000,-500.0,0.00014999,2]
[422360913,1778872244000,-500.0,0.00014999,2]
[422360911,1778872244000,-500.0,0.00014999,2]
[422360912,1778872244000,-500.0,0.00014999,2]
[422360915,1778872244000,-500.0,0.00014999,2]
[422360910,1778872244000,-500.0,0.00014999,2]
[422360916,1778872244000,-500.0,0.00014999,2]
[422360914,1778872244000,-500.0,0.00014999,2]
[422360917,1778872244000,-500.0,0.00014999,2]
[422360920,1778872244000,-500.0,0.00014999,2]
[422360921,1778872244000,-500.0,0.00014999,2]
[422360932,1778872244000,-300.0,0.00014999,2]
[422360922,1778872244000,-500.0,0.00014999,2]
[422360923,1778872244000,-500.0,0.00014999,2]
[422360931,1778872244000,-300.0,0.00014999,2]
[422360924,1778872244000,-500.0,0.00014999,2]
[422360930,1778872244000,-666.0,0.00014999,2]
[422360925,1778872244000,-531.58948672,0.00014999,2]
[422360929,1778872244000,-300.0,0.00014999,2]
[422360927,1778872244000,-300.0,0.00014999,2]
[422360928,1778872244000,-300.0,0.00014999,2]
[422360935,1778872244000,-666.0,0.00014999,2]
[422360936,1778872244000,-2147.0,0.00015,5]
[422360934,1778872244000,-300.0,0.00014999,2]
[422360937,1778872244000,-4420661.25870718,0.00015,2]
[422360868,1778872244000,-500.0,0.00014999,2]
[422360909,1778872244000,-500.0,0.00014999,2]
[422360907,1778872244000,-500.0,0.00014999,2]
[422360926,1778872244000,-300.0,0.00014999,2]
[422360918,1778872244000,-500.0,0.00014999,2]
[422360888,1778872244000,-500.0,0.00014999,2]
[422360881,1778872244000,-500.0,0.00014999,2]
[422360890,1778872244000,-500.0,0.00014999,2]
[422360893,1778872244000,-500.0,0.00014999,2]
[422360892,1778872244000,-500.0,0.00014999,2]
[422360879,1778872244000,-500.0,0.00014999,2]
[422360885,1778872244000,-500.0,0.00014999,2]
[422360887,1778872244000,-500.0,0.00014999,2]
[422360889,1778872244000,-500.0,0.00014999,2]
[422360891,1778872244000,-500.0,0.00014999,2]
[422360919,1778872244000,-500.0,0.00014999,2]
[422360886,1778872244000,-500.0,0.00014999,2]
[422360895,1778872244000,-500.0,0.00014999,2]
[422360883,1778872244000,-500.0,0.00014999,2]
[422360905,1778872244000,-500.0,0.00014999,2]
[422360908,1778872244000,-500.0,0.00014999,2]
[422360903,1778872244000,-500.0,0.00014999,2]
[422360902,1778872244000,-500.0,0.00014999,2]
[422360906,1778872244000,-500.0,0.00014999,2]
[422360901,1778872244000,-500.0,0.00014999,2]
[422360904,1778872244000,-500.0,0.00014999,2]
[422360897,1778872244000,-500.0,0.00014999,2]
[422360896,1778872244000,-500.0,0.00014999,2]
[422360899,1778872244000,-500.0,0.00014999,2]
[422360900,1778872244000,-500.0,0.00014999,2]
[422360894,1778872244000,-500.0,0.00014999,2]
[422360898,1778872244000,-500.0,0.00014999,2]
[422360940,1778872246000,-40452.92053555,0.00015,2]
[422360938,1778872246000,-62657.84549931,0.00015,2]
[422360941,1778872246000,-289.5,0.00015,2]
[422360939,1778872246000,-800.30798175,0.00015,2]
[422360943,1778872246000,-693.72533555,0.00012779,2]
[422360942,1778872246000,-661.03999474,0.00012779,2]
[422360945,1778872246000,-507.76828822,0.00012779,2]